Body Name,Document Number,Service,Type of Expenditure,Invoice Date,Supplier Name,Cost to the Council (Amount Exc VAT),Month
EREWASH BOROUGH COUNCIL,3093,Development Control           ,Consultants Fees              ,31-Jul-2021,IDOM MEREBROOK LTD                      ,375.00,Aug-21
EREWASH BOROUGH COUNCIL,2979,Non-domestic Rates Collection ,Fees Costs and Expenses       ,22-Jul-2021,INFORM CPI LTD                          ,584.00,Aug-21
EREWASH BOROUGH COUNCIL,2062,Personnel and ICT             ,Vehicles                      ,14-Jul-2021,INSIGHT DIRECT (UK) LTD                 ,"5,163.00",Aug-21
EREWASH BOROUGH COUNCIL,630,Personnel and ICT             ,Vehicles                      ,18-Jun-2021,INSIGHT DIRECT (UK) LTD                 ,"5,163.00",Aug-21
EREWASH BOROUGH COUNCIL,2332,Personnel and ICT             ,Vehicles                      ,26-Jul-2021,INSIGHT DIRECT (UK) LTD                 ,"13,305.49",Aug-21
EREWASH BOROUGH COUNCIL,2297,Personnel and ICT             ,Vehicles                      ,22-Jul-2021,INSIGHT DIRECT (UK) LTD                 ,"36,223.17",Aug-21
EREWASH BOROUGH COUNCIL,2556,Car Parking                   ,Credit/Debit Card Charges     ,31-Jul-2021,INTERNATIONAL PARKING SYSTEMS UK LTD    ,"1,107.60",Aug-21
EREWASH BOROUGH COUNCIL,2312,Transport Trading Account     ,Training                      ,15-Jul-2021,J COATES (H.G.V. SERVICES) LTD          ,"1,075.00",Aug-21
EREWASH BOROUGH COUNCIL,2293,Property and Estates          ,External Property Works       ,23-Jul-2021,J TOMLINSON LIMITED                     ,"139,985.80",Aug-21
EREWASH BOROUGH COUNCIL,2293,Property and Estates          ,Internal Fixtures and Fittings,23-Jul-2021,J TOMLINSON LIMITED                     ,"1,567.35",Aug-21
EREWASH BOROUGH COUNCIL,2077,Commissioned Projects         ,Fees Costs and Expenses       ,15-Jul-2021,JENSON PRESS PRINTERS                   ,310.00,Aug-21
EREWASH BOROUGH COUNCIL,2123,"Police, Crime Commissioner Com",Project Grants                ,14-Jul-2021,JNE SECURITY LIMITED                    ,916.00,Aug-21
EREWASH BOROUGH COUNCIL,2371,General Entertainment         ,Special Events                ,25-Jul-2021,JOKER ENTERTAINMENT                     ,625.00,Aug-21
EREWASH BOROUGH COUNCIL,2539,Green Space                   ,Materials/Consumables         ,17-Jun-2021,KERNOCK PARK PLANTS                     ,"1,985.00",Aug-21
EREWASH BOROUGH COUNCIL,2683,EBC Balance Sheet             ,Childcare Salary Sacrifice    ,05-Aug-2021,KIDDIVOUCHERS LTD                       ,776.00,Aug-21
EREWASH BOROUGH COUNCIL,2998,Front Line Support Services   ,Security                      ,31-Jul-2021,KINGS ARMOURED SECURITY SERVICES        ,739.20,Aug-21
EREWASH BOROUGH COUNCIL,2566,Car Parking                   ,Contracted Services           ,31-Jul-2021,KINGS ARMOURED SECURITY SERVICES        ,"1,552.95",Aug-21
EREWASH BOROUGH COUNCIL,2499,ICT Support Services          ,Equipment Leasing Charge      ,28-Jul-2021,KYOCERA DOCUMENT SOLUTIONS (UK) LTD     ,"1,991.21",Aug-21
EREWASH BOROUGH COUNCIL,2064,Household Waste Collection    ,Agency Staff                  ,15-Jul-2021,QUALITY SERVICE RECRUITMENT LTD         ,588.74,Aug-21
EREWASH BOROUGH COUNCIL,2064,Kerbside Recycling Collection ,Agency Staff                  ,15-Jul-2021,QUALITY SERVICE RECRUITMENT LTD         ,392.50,Aug-21
EREWASH BOROUGH COUNCIL,1182,Household Waste Collection    ,Agency Staff                  ,08-Jul-2021,QUALITY SERVICE RECRUITMENT LTD         ,588.74,Aug-21
EREWASH BOROUGH COUNCIL,1182,Kerbside Recycling Collection ,Agency Staff                  ,08-Jul-2021,QUALITY SERVICE RECRUITMENT LTD         ,392.50,Aug-21
EREWASH BOROUGH COUNCIL,2488,Household Waste Collection    ,Agency Staff                  ,29-Jul-2021,QUALITY SERVICE RECRUITMENT LTD         ,636.25,Aug-21
EREWASH BOROUGH COUNCIL,2488,Kerbside Recycling Collection ,Agency Staff                  ,29-Jul-2021,QUALITY SERVICE RECRUITMENT LTD         ,424.17,Aug-21
EREWASH BOROUGH COUNCIL,2598,Transport Trading Account     ,Agency Staff                  ,19-Jul-2021,QUESTECH RECRUITMENT LTD                ,906.50,Aug-21
EREWASH BOROUGH COUNCIL,2597,Transport Trading Account     ,Agency Staff                  ,12-Jul-2021,QUESTECH RECRUITMENT LTD                ,906.50,Aug-21
EREWASH BOROUGH COUNCIL,2601,Transport Trading Account     ,Agency Staff                  ,05-Jul-2021,QUESTECH RECRUITMENT LTD                ,906.50,Aug-21
EREWASH BOROUGH COUNCIL,2599,Transport Trading Account     ,Agency Staff                  ,26-Jul-2021,QUESTECH RECRUITMENT LTD                ,906.50,Aug-21
EREWASH BOROUGH COUNCIL,2600,Transport Trading Account     ,Agency Staff                  ,02-Aug-2021,QUESTECH RECRUITMENT LTD                ,906.50,Aug-21
EREWASH BOROUGH COUNCIL,2817,Building Control Adv & Inform ,Contracted Services           ,01-Aug-2021,RANSOMWOOD ESTATES UK LIMITED           ,531.67,Aug-21
EREWASH BOROUGH COUNCIL,2127,Building Control - Fee Earning,Agency Staff                  ,16-Jul-2021,REED SPECIALIST RECRUITMENT LTD         ,520.37,Aug-21
EREWASH BOROUGH COUNCIL,2348,Building Control - Fee Earning,Agency Staff                  ,16-Jul-2021,REED SPECIALIST RECRUITMENT LTD         ,650.46,Aug-21
EREWASH BOROUGH COUNCIL,2751,Building Control - Fee Earning,Agency Staff                  ,02-Jul-2021,REED SPECIALIST RECRUITMENT LTD         ,650.46,Aug-21
EREWASH BOROUGH COUNCIL,2567,Building Control - Fee Earning,Agency Staff                  ,23-Jul-2021,REED SPECIALIST RECRUITMENT LTD         ,650.46,Aug-21
EREWASH BOROUGH COUNCIL,2818,Building Control - Fee Earning,Agency Staff                  ,30-Jul-2021,REED SPECIALIST RECRUITMENT LTD         ,650.46,Aug-21
EREWASH BOROUGH COUNCIL,2500,Building Control Adv & Inform ,Contracted Services           ,29-Jul-2021,RENSHAW JOINERY                         ,480.00,Aug-21
EREWASH BOROUGH COUNCIL,1339,Shopmobility - Ilkeston       ,Sanitary Services             ,07-Jul-2021,RENTOKIL INITIAL SERVICES LIMITED       ,2.92,Aug-21
EREWASH BOROUGH COUNCIL,1339,Erewash Museum                ,Sanitary Services             ,07-Jul-2021,RENTOKIL INITIAL SERVICES LIMITED       ,11.97,Aug-21
EREWASH BOROUGH COUNCIL,1339,Civic Accommodation Ilkeston  ,Sanitary Services             ,07-Jul-2021,RENTOKIL INITIAL SERVICES LIMITED       ,48.12,Aug-21
EREWASH BOROUGH COUNCIL,1339,Long Eaton Market             ,Sanitary Services             ,07-Jul-2021,RENTOKIL INITIAL SERVICES LIMITED       ,1.46,Aug-21
EREWASH BOROUGH COUNCIL,1339,Civic Accommodation Long Eaton,Sanitary Services             ,07-Jul-2021,RENTOKIL INITIAL SERVICES LIMITED       ,63.70,Aug-21
EREWASH BOROUGH COUNCIL,1339,Merlin Way Depot              ,Sanitary Services             ,07-Jul-2021,RENTOKIL INITIAL SERVICES LIMITED       ,58.98,Aug-21
EREWASH BOROUGH COUNCIL,1339,Public Conveniences           ,Sanitary Services             ,07-Jul-2021,RENTOKIL INITIAL SERVICES LIMITED       ,142.40,Aug-21
EREWASH BOROUGH COUNCIL,1485,Revenues and Benefits         ,Postages                      ,06-Jul-2021,ROYAL MAIL GROUP LTD.                   ,341.67,Aug-21
EREWASH BOROUGH COUNCIL,2267,Revenues and Benefits         ,Postages                      ,21-Jul-2021,ROYAL MAIL GROUP LTD.                   ,"2,136.28",Aug-21
EREWASH BOROUGH COUNCIL,1341,Green Space                   ,Repairs and Maintenance       ,09-Jul-2021,RUSSELLS (KIRBYMOORSIDE) LIMITED        ,365.82,Aug-21
EREWASH BOROUGH COUNCIL,3215,Green Space                   ,Repairs and Maintenance       ,22-Jul-2021,RUSSELLS (KIRBYMOORSIDE) LIMITED        ,994.10,Aug-21
EREWASH BOROUGH COUNCIL,3215,Green Space                   ,Repairs and Maintenance       ,22-Jul-2021,RUSSELLS (KIRBYMOORSIDE) LIMITED        ,599.95,Aug-21
EREWASH BOROUGH COUNCIL,2606,Community Grants              ,Project Grants                ,04-Aug-2021,SANDIACRE PARISH COUNCIL                ,"1,200.00",Aug-21
EREWASH BOROUGH COUNCIL,2296,Trade Waste                   ,Repairs and Maintenance       ,22-Jul-2021,SANDICLIFFE LIMITED                     ,748.00,Aug-21
EREWASH BOROUGH COUNCIL,2124,"Police, Crime Commissioner Com",Project Grants                ,16-Jul-2021,SAWLEY YOUTH CLUB                       ,405.59,Aug-21
EREWASH BOROUGH COUNCIL,2124,"Police, Crime Commissioner Com",Project Grants                ,16-Jul-2021,SAWLEY YOUTH CLUB                       ,405.59,Aug-21
EREWASH BOROUGH COUNCIL,3166,Licensing - Health Services   ,Veterinary Fees               ,09-Aug-2021,SCARSDALE VETS                          ,420.00,Aug-21
EREWASH BOROUGH COUNCIL,3081,Registration of Electors      ,Stationery                    ,30-Jul-2021,SCI PRINT LTD                           ,"6,968.47",Aug-21
EREWASH BOROUGH COUNCIL,2821,Community Safety              ,Grants and Subscriptions      ,11-Aug-2021,SHE WILL - Female Youth Empowerment     ,"1,170.00",Aug-21
EREWASH BOROUGH COUNCIL,2591,Property and Estates          ,External Property Works       ,30-Jul-2021,SIGNS DIRECT LTD                        ,"2,852.33",Aug-21
EREWASH BOROUGH COUNCIL,2591,Property and Estates          ,External Property Works       ,30-Jul-2021,SIGNS DIRECT LTD                        ,348.67,Aug-21
EREWASH BOROUGH COUNCIL,2505,"Police, Crime Commissioner Com",Project Grants                ,27-Jul-2021,SOLON SECURITY LTD                      ,513.00,Aug-21
EREWASH BOROUGH COUNCIL,2269,"Police, Crime Commissioner Com",Project Grants                ,20-Jul-2021,SOLON SECURITY LTD                      ,275.00,Aug-21
EREWASH BOROUGH COUNCIL,2382,Green Space                   ,General Equipment             ,19-Jul-2021,SPALDINGS LIMITED                       ,356.40,Aug-21
EREWASH BOROUGH COUNCIL,1549,Public Conveniences           ,Reactive Maintenance          ,09-Jul-2021,STEELCRAFT FABRICATIONS                 ,420.00,Aug-21
EREWASH BOROUGH COUNCIL,1257,Green Space                   ,Materials/Consumables         ,07-Jul-2021,STEELCRAFT FABRICATIONS                 ,790.00,Aug-21
EREWASH BOROUGH COUNCIL,2501,Civic Accommodation Long Eaton,Reactive Maintenance          ,28-Jul-2021,STEELCRAFT FABRICATIONS                 ,440.00,Aug-21
EREWASH BOROUGH COUNCIL,2515,Corporate Health and Safety   ,Water Testing (Legionella)    ,29-Jul-2021,STERILIZING SERVICES LTD                ,"1,027.80",Aug-21
EREWASH BOROUGH COUNCIL,932,Green Space                   ,Materials/Consumables         ,29-Jun-2021,STREETMASTER (SOUTH WALES) LTD          ,"1,554.00",Aug-21
EREWASH BOROUGH COUNCIL,2119,Property and Estates          ,Subscriptions                 ,16-Jul-2021,SURVEY HUB                              ,600.00,Aug-21
EREWASH BOROUGH COUNCIL,417,CCTV - Ilkeston and Long Eaton,Maintenance of Equipment      ,15-Jun-2021,SYNECTICS SECURITY LIMITED              ,357.00,Aug-21
EREWASH BOROUGH COUNCIL,1188,CCTV - Ilkeston and Long Eaton,Contracted Services           ,07-Jul-2021,SYNECTICS SECURITY LIMITED              ,"7,920.50",Aug-21
EREWASH BOROUGH COUNCIL,2756,Development Control           ,Computer Software             ,31-Jul-2021,DAVID HUGHES AGRICULTURAL CONSULTANCY LT,"1,125.00",Aug-21
EREWASH BOROUGH COUNCIL,1218,Household Waste Collection    ,Repairs and Maintenance       ,07-Jul-2021,DENNIS EAGLE LTD                        ,398.90,Aug-21
EREWASH BOROUGH COUNCIL,2180,Household Waste Collection    ,Repairs and Maintenance       ,19-Jul-2021,DENNIS EAGLE LTD                        ,368.00,Aug-21
EREWASH BOROUGH COUNCIL,2075,Kerbside Recycling Collection ,Repairs and Maintenance       ,13-Jul-2021,DENNIS EAGLE LTD                        ,372.19,Aug-21
EREWASH BOROUGH COUNCIL,3162,Household Waste Collection    ,Repairs and Maintenance       ,28-Jul-2021,DENNIS EAGLE LTD                        ,517.50,Aug-21
EREWASH BOROUGH COUNCIL,3162,Household Waste Collection    ,Repairs and Maintenance       ,28-Jul-2021,DENNIS EAGLE LTD                        ,294.82,Aug-21
EREWASH BOROUGH COUNCIL,3182,EBC Balance Sheet             ,Payroll Coll Acc Credit Union ,24-Aug-2021,DERBYSHIRE COMMUNITY BANK               ,330.00,Aug-21
EREWASH BOROUGH COUNCIL,2578,Environmental & Housing Serv  ,Disabled Facilities Grant     ,10-May-2021,DERBYSHIRE COUNTY COUNCIL...            ,"5,453.50",Aug-21
EREWASH BOROUGH COUNCIL,2577,Environmental & Housing Serv  ,Disabled Facilities Grant     ,17-May-2021,DERBYSHIRE COUNTY COUNCIL...            ,"5,904.00",Aug-21
EREWASH BOROUGH COUNCIL,2383,Compensation and Pensions     ,Compensatory Added Years      ,23-Jul-2021,DERBYSHIRE COUNTY COUNCIL...            ,"18,645.58",Aug-21
EREWASH BOROUGH COUNCIL,2331,EBC Balance Sheet             ,Payroll Coll Acc Superanuation,27-Jul-2021,DERBYSHIRE COUNTY COUNCIL...            ,"123,008.86",Aug-21
EREWASH BOROUGH COUNCIL,2331,EBC Balance Sheet             ,Payroll Coll Acc Superanuation,27-Jul-2021,DERBYSHIRE COUNTY COUNCIL...            ,"83,250.00",Aug-21
EREWASH BOROUGH COUNCIL,2777,Planning Policy               ,Software Licences             ,13-Jul-2021,DERBYSHIRE COUNTY COUNCIL...            ,998.88,Aug-21
EREWASH BOROUGH COUNCIL,2784,Environmental & Housing Serv  ,Disabled Facilities Grant     ,13-Jul-2021,DERBYSHIRE COUNTY COUNCIL...            ,"2,535.00",Aug-21
EREWASH BOROUGH COUNCIL,2785,Environmental & Housing Serv  ,Disabled Facilities Grant     ,01-Jun-2021,DERBYSHIRE COUNTY COUNCIL...            ,"5,501.20",Aug-21
EREWASH BOROUGH COUNCIL,2783,Environmental & Housing Serv  ,Disabled Facilities Grant     ,21-Jun-2021,DERBYSHIRE COUNTY COUNCIL...            ,"6,354.50",Aug-21
EREWASH BOROUGH COUNCIL,2562,Street Scene                  ,Materials/Consumables         ,02-Aug-2021,DIAMOND DRIVER TRAINING                 ,644.17,Aug-21
EREWASH BOROUGH COUNCIL,2996,General Entertainment         ,Special Events                ,06-Aug-2021,DINNINGTON COLLIERY BAND                ,300.00,Aug-21
EREWASH BOROUGH COUNCIL,2607,Community Grants              ,Project Grants                ,04-Aug-2021,DRAYCOTT PARISH COUNCIL                 ,"1,200.00",Aug-21
EREWASH BOROUGH COUNCIL,2281,Revenues and Benefits         ,Postages                      ,12-Jul-2021,DSI BILLING SERVICES LTD                ,844.61,Aug-21
EREWASH BOROUGH COUNCIL,2822,Legal Services                ,"Stamp Duty,Search and Legal Fe",28-Jun-2021,Derwent Chambers                        ,"1,500.00",Aug-21
EREWASH BOROUGH COUNCIL,2369,General Entertainment         ,Special Events                ,25-Jul-2021,EFFECTIVE SECURITY SERVICES LTD         ,651.75,Aug-21
EREWASH BOROUGH COUNCIL,2679,Homelessness                  ,Homelessness-Lease Properties ,01-Jun-2021,EMH HOMES                               ,967.62,Aug-21
EREWASH BOROUGH COUNCIL,2680,Homelessness                  ,Homelessness-Lease Properties ,01-Jun-2021,EMH HOMES                               ,967.62,Aug-21
EREWASH BOROUGH COUNCIL,2675,Homelessness                  ,Homelessness-Lease Properties ,01-Jun-2021,EMH HOMES                               ,"1,059.74",Aug-21
EREWASH BOROUGH COUNCIL,2676,Homelessness                  ,Homelessness-Lease Properties ,01-Jun-2021,EMH HOMES                               ,"1,059.74",Aug-21
EREWASH BOROUGH COUNCIL,2677,Homelessness                  ,Homelessness-Lease Properties ,01-Jun-2021,EMH HOMES                               ,"1,161.01",Aug-21
EREWASH BOROUGH COUNCIL,2678,Homelessness                  ,Homelessness-Lease Properties ,01-Jun-2021,EMH HOMES                               ,"1,161.01",Aug-21
EREWASH BOROUGH COUNCIL,2490,Homelessness Prevention       ,Spend to Save                 ,28-Jul-2021,EMH HOMES                               ,411.36,Aug-21
EREWASH BOROUGH COUNCIL,3107,EBC Balance Sheet             ,Payroll Coll Acc Labour Party ,20-Aug-2021,EREWASH LABOUR GROUP                    ,512.92,Aug-21
EREWASH BOROUGH COUNCIL,2572,Economic Development          ,Grants and Subscriptions      ,01-Jul-2021,EREWASH PARTNERSHIP LTD                 ,"19,625.00",Aug-21
EREWASH BOROUGH COUNCIL,2275,Green Space                   ,Contracted Services           ,21-Jul-2021,T H HEATH  CONTRACTS  LTD               ,472.00,Aug-21
EREWASH BOROUGH COUNCIL,2533,Green Space                   ,Contracted Services           ,29-Jul-2021,T H HEATH  CONTRACTS  LTD               ,697.59,Aug-21
EREWASH BOROUGH COUNCIL,2532,Green Space                   ,Contracted Services           ,29-Jul-2021,T H HEATH  CONTRACTS  LTD               ,"5,429.24",Aug-21
EREWASH BOROUGH COUNCIL,1409,Toll Bar House                ,Alarms Planned Maintenence    ,12-Jul-2021,TECSERV UK                              ,595.55,Aug-21
EREWASH BOROUGH COUNCIL,2152,Civic Accommodation Long Eaton,Alarms Reactive Maintenance   ,20-Jul-2021,TECSERV UK                              ,331.20,Aug-21
EREWASH BOROUGH COUNCIL,2161,Car Parking                   ,Reactive Maintenance          ,20-Jul-2021,TECSERV UK                              ,"1,492.00",Aug-21
EREWASH BOROUGH COUNCIL,3145,Transport Trading Account     ,Materials/Consumables         ,18-Jun-2021,TENNANTS DISTRIBUTION LTD               ,820.00,Aug-21
EREWASH BOROUGH COUNCIL,2171,Kerbside Recycling Collection ,Repairs and Maintenance       ,16-Jul-2021,TERBERG MATEC UK                        ,369.87,Aug-21
EREWASH BOROUGH COUNCIL,2170,Kerbside Recycling Collection ,Repairs and Maintenance       ,19-Jul-2021,TERBERG MATEC UK                        ,686.48,Aug-21
EREWASH BOROUGH COUNCIL,2183,Kerbside Recycling Collection ,Repairs and Maintenance       ,19-Jul-2021,TERBERG MATEC UK                        ,"1,004.72",Aug-21
EREWASH BOROUGH COUNCIL,2684,Household Waste Collection    ,Repairs and Maintenance       ,16-Jul-2021,TERBERG MATEC UK                        ,632.58,Aug-21
EREWASH BOROUGH COUNCIL,2684,Household Waste Collection    ,Repairs and Maintenance       ,16-Jul-2021,TERBERG MATEC UK                        ,"2,768.72",Aug-21
EREWASH BOROUGH COUNCIL,1342,Kerbside Recycling Collection ,Repairs and Maintenance       ,08-Jul-2021,TERBERG MATEC UK                        ,796.86,Aug-21
EREWASH BOROUGH COUNCIL,1048,Kerbside Recycling Collection ,Repairs and Maintenance       ,06-Jul-2021,TERBERG MATEC UK                        ,400.14,Aug-21
EREWASH BOROUGH COUNCIL,1048,Kerbside Recycling Collection ,Repairs and Maintenance       ,06-Jul-2021,TERBERG MATEC UK                        ,"1,004.72",Aug-21
EREWASH BOROUGH COUNCIL,1208,Household Waste Collection    ,Repairs and Maintenance       ,07-Jul-2021,TERBERG MATEC UK                        ,"7,300.00",Aug-21
EREWASH BOROUGH COUNCIL,4336,Green Space                   ,Fuel                          ,31-Aug-2021,THE RIGHT FUELCARD COMPANY LTD          ,"1,590.91",Aug-21
EREWASH BOROUGH COUNCIL,2167,Green Space                   ,Materials/Consumables         ,20-Jul-2021,THE ROYAL HORTICULTURAL SOCIETY         ,"1,191.67",Aug-21
EREWASH BOROUGH COUNCIL,2700,Registration of Electors      ,Subscriptions                 ,01-Aug-2021,THOMSON REUTERS                         ,316.80,Aug-21
EREWASH BOROUGH COUNCIL,2100,Household Waste Collection    ,Agency Staff                  ,14-Jul-2021,THORN BAKER LIMITED                     ,"2,061.02",Aug-21
EREWASH BOROUGH COUNCIL,2100,Kerbside Recycling Collection ,Agency Staff                  ,14-Jul-2021,THORN BAKER LIMITED                     ,"1,374.01",Aug-21
EREWASH BOROUGH COUNCIL,1374,Household Waste Collection    ,Agency Staff                  ,07-Jul-2021,THORN BAKER LIMITED                     ,"2,129.73",Aug-21
EREWASH BOROUGH COUNCIL,1374,Kerbside Recycling Collection ,Agency Staff                  ,07-Jul-2021,THORN BAKER LIMITED                     ,"1,419.82",Aug-21
EREWASH BOROUGH COUNCIL,2526,Household Waste Collection    ,Agency Staff                  ,28-Jul-2021,THORN BAKER LIMITED                     ,"1,284.07",Aug-21
EREWASH BOROUGH COUNCIL,2526,Kerbside Recycling Collection ,Agency Staff                  ,28-Jul-2021,THORN BAKER LIMITED                     ,856.04,Aug-21
EREWASH BOROUGH COUNCIL,3146,Household Waste Collection    ,Agency Staff                  ,21-Jul-2021,THORN BAKER LIMITED                     ,"1,840.16",Aug-21
EREWASH BOROUGH COUNCIL,3146,Kerbside Recycling Collection ,Agency Staff                  ,21-Jul-2021,THORN BAKER LIMITED                     ,"1,226.77",Aug-21
EREWASH BOROUGH COUNCIL,2138,Trees Hedges Local Nature Res ,Contracted Services           ,19-Jul-2021,TOM RICHARDS TREE SERVICES              ,"12,416.00",Aug-21
EREWASH BOROUGH COUNCIL,2560,Trees Hedges Local Nature Res ,Contracted Services           ,15-Jun-2021,TOM RICHARDS TREE SERVICES              ,"1,950.00",Aug-21
EREWASH BOROUGH COUNCIL,2374,Trees Hedges Local Nature Res ,Contracted Services           ,23-Jul-2021,TOM RICHARDS TREE SERVICES              ,300.00,Aug-21
EREWASH BOROUGH COUNCIL,2559,Trees Hedges Local Nature Res ,Contracted Services           ,23-Jul-2021,TOM RICHARDS TREE SERVICES              ,450.00,Aug-21
EREWASH BOROUGH COUNCIL,2151,Toll Bar House                ,Electricity                   ,20-Jul-2021,TOTAL GAS & POWER LTD                   ,278.67,Aug-21
EREWASH BOROUGH COUNCIL,2151,Green Space                   ,Electricity                   ,20-Jul-2021,TOTAL GAS & POWER LTD                   ,998.97,Aug-21
EREWASH BOROUGH COUNCIL,2151,CCTV - Ilkeston and Long Eaton,Electricity                   ,20-Jul-2021,TOTAL GAS & POWER LTD                   ,301.97,Aug-21
EREWASH BOROUGH COUNCIL,2151,Ilkeston Market               ,Electricity                   ,20-Jul-2021,TOTAL GAS & POWER LTD                   ,280.60,Aug-21
EREWASH BOROUGH COUNCIL,2151,Car Parking                   ,Electricity                   ,20-Jul-2021,TOTAL GAS & POWER LTD                   ,586.77,Aug-21
EREWASH BOROUGH COUNCIL,2151,Green Space                   ,Electricity                   ,20-Jul-2021,TOTAL GAS & POWER LTD                   ,501.58,Aug-21
EREWASH BOROUGH COUNCIL,2151,Public Conveniences           ,Electricity                   ,20-Jul-2021,TOTAL GAS & POWER LTD                   ,496.78,Aug-21
EREWASH BOROUGH COUNCIL,2150,Merlin Way Depot              ,Electricity                   ,13-Jul-2021,TOTAL GAS & POWER LTD                   ,"1,168.83",Aug-21
EREWASH BOROUGH COUNCIL,2150,Civic Accommodation Long Eaton,Electricity                   ,13-Jul-2021,TOTAL GAS & POWER LTD                   ,"1,303.08",Aug-21
EREWASH BOROUGH COUNCIL,2150,Civic Accommodation Ilkeston  ,Electricity                   ,13-Jul-2021,TOTAL GAS & POWER LTD                   ,"1,113.29",Aug-21
EREWASH BOROUGH COUNCIL,2150,Sandiacre Friesland Sports Ctr,Electricity                   ,13-Jul-2021,TOTAL GAS & POWER LTD                   ,347.23,Aug-21
EREWASH BOROUGH COUNCIL,2150,Green Space                   ,Electricity                   ,13-Jul-2021,TOTAL GAS & POWER LTD                   ,834.63,Aug-21
EREWASH BOROUGH COUNCIL,2305,Household Waste Collection    ,Agency Staff                  ,23-Jul-2021,TOTAL TRANSPORT COMPLIANCE              ,"1,500.00",Aug-21
EREWASH BOROUGH COUNCIL,2779,Household Waste Collection    ,Agency Staff                  ,06-Aug-2021,TOTAL TRANSPORT COMPLIANCE              ,"1,500.00",Aug-21
EREWASH BOROUGH COUNCIL,3112,Household Waste Collection    ,Agency Staff                  ,20-Aug-2021,TOTAL TRANSPORT COMPLIANCE              ,"1,500.00",Aug-21
EREWASH BOROUGH COUNCIL,2613,Transport Trading Account     ,Software Licences             ,12-Jul-2021,TRAPEZE GROUP (UK) LTD                  ,"4,324.10",Aug-21
EREWASH BOROUGH COUNCIL,2971,Green Space                   ,Materials/Consumables         ,30-Jul-2021,TUDOR ENVIRONMENTAL                     ,"1,080.87",Aug-21
EREWASH BOROUGH COUNCIL,2547,Green Space                   ,Materials/Consumables         ,30-Jul-2021,TUDOR ENVIRONMENTAL                     ,"1,192.80",Aug-21
EREWASH BOROUGH COUNCIL,3178,EBC Balance Sheet             ,Payroll Coll Acc - Trade Union,24-Aug-2021,UNISON                                  ,422.40,Aug-21
EREWASH BOROUGH COUNCIL,2503,Accountancy                   ,Software Licences             ,29-Jul-2021,VERSION 1 SOLUTIONS LIMITED             ,772.50,Aug-21
EREWASH BOROUGH COUNCIL,2827,Green Space                   ,Contracted Services           ,30-Jun-2021,WAYNE PEAPELL CONSULTANCY LTD           ,"1,495.33",Aug-21
EREWASH BOROUGH COUNCIL,2973,Green Space                   ,Contracted Services           ,11-Aug-2021,WAYNE PEAPELL CONSULTANCY LTD           ,"1,495.33",Aug-21
EREWASH BOROUGH COUNCIL,2608,Community Grants              ,Project Grants                ,04-Aug-2021,WEST HALLAM PARISH COUNCIL              ,"1,200.00",Aug-21
EREWASH BOROUGH COUNCIL,2776,Play Areas                    ,Materials/Consumables         ,30-Jun-2021,WICKSTEED LEISURE LTD                   ,402.55,Aug-21
EREWASH BOROUGH COUNCIL,2798,Council Tax Collection        ,Fees Costs and Expenses       ,13-Jul-2021,WILKIN CHAPMAN LLP                      ,495.00,Aug-21
EREWASH BOROUGH COUNCIL,2980,Council Tax Collection        ,Fees Costs and Expenses       ,06-Jul-2021,WILKIN CHAPMAN LLP                      ,672.20,Aug-21
EREWASH BOROUGH COUNCIL,2816,Household Waste Collection    ,Agency Staff                  ,05-Jun-2021,WORKCHAIN LTD                           ,"1,388.26",Aug-21
EREWASH BOROUGH COUNCIL,2816,Kerbside Recycling Collection ,Agency Staff                  ,05-Jun-2021,WORKCHAIN LTD                           ,925.51,Aug-21
EREWASH BOROUGH COUNCIL,2061,Household Waste Collection    ,Agency Staff                  ,10-Jul-2021,WORKCHAIN LTD                           ,"1,734.26",Aug-21
EREWASH BOROUGH COUNCIL,2061,Kerbside Recycling Collection ,Agency Staff                  ,10-Jul-2021,WORKCHAIN LTD                           ,"1,156.18",Aug-21
EREWASH BOROUGH COUNCIL,2272,Household Waste Collection    ,Agency Staff                  ,17-Jul-2021,WORKCHAIN LTD                           ,"1,594.49",Aug-21
EREWASH BOROUGH COUNCIL,2272,Kerbside Recycling Collection ,Agency Staff                  ,17-Jul-2021,WORKCHAIN LTD                           ,"1,063.00",Aug-21
EREWASH BOROUGH COUNCIL,2563,Household Waste Collection    ,Agency Staff                  ,30-Jul-2021,WORKCHAIN LTD                           ,"1,734.26",Aug-21
EREWASH BOROUGH COUNCIL,2563,Kerbside Recycling Collection ,Agency Staff                  ,30-Jul-2021,WORKCHAIN LTD                           ,"1,156.18",Aug-21
EREWASH BOROUGH COUNCIL,2702,Household Waste Collection    ,Agency Staff                  ,31-Jul-2021,WORKCHAIN LTD                           ,"1,734.26",Aug-21
EREWASH BOROUGH COUNCIL,2702,Kerbside Recycling Collection ,Agency Staff                  ,31-Jul-2021,WORKCHAIN LTD                           ,"1,156.18",Aug-21
EREWASH BOROUGH COUNCIL,2338,ICT Support Services          ,Data Lines                    ,26-Jul-2021,ZEN INTERNET LIMITED                    ,"1,367.01",Aug-21
EREWASH BOROUGH COUNCIL,2339,Pedestrian Zones - Ilk and LE ,Reactive Maintenance          ,06-Jul-2021,N B CONSTRUCTION                        ,350.00,Aug-21
EREWASH BOROUGH COUNCIL,2349,Car Parking                   ,General Equipment             ,27-Jul-2021,NAGELS UK LTD                           ,855.00,Aug-21
EREWASH BOROUGH COUNCIL,2985,ICT Support Services          ,Software Licences             ,09-Jul-2021,NCC SERVICES LTD                        ,645.00,Aug-21
EREWASH BOROUGH COUNCIL,2934,Green Space                   ,Materials/Consumables         ,13-Jul-2021,NOMIX ENVIRO LIMITED                    ,312.00,Aug-21
EREWASH BOROUGH COUNCIL,2068,Personnel                     ,Recruitment Expenses          ,09-Jul-2021,NOTTINGHAM CITY COUNCIL                 ,"1,362.00",Aug-21
EREWASH BOROUGH COUNCIL,2496,Homelessness                  ,Temporary Accommodation       ,12-May-2021,NOVOTEL NOTTINGHAM                      ,257.16,Aug-21
EREWASH BOROUGH COUNCIL,2494,Homelessness                  ,Temporary Accommodation       ,18-May-2021,NOVOTEL NOTTINGHAM                      ,728.62,Aug-21
EREWASH BOROUGH COUNCIL,2497,Homelessness                  ,Temporary Accommodation       ,18-May-2021,NOVOTEL NOTTINGHAM                      ,728.62,Aug-21
EREWASH BOROUGH COUNCIL,2493,Homelessness                  ,Temporary Accommodation       ,19-May-2021,NOVOTEL NOTTINGHAM                      ,814.34,Aug-21
EREWASH BOROUGH COUNCIL,2730,Homelessness                  ,Temporary Accommodation       ,25-Jun-2021,NOVOTEL NOTTINGHAM                      ,"1,028.64",Aug-21
EREWASH BOROUGH COUNCIL,2759,Homelessness                  ,Temporary Accommodation       ,01-Jun-2021,NOVOTEL NOTTINGHAM                      ,"1,328.66",Aug-21
EREWASH BOROUGH COUNCIL,2729,Homelessness                  ,Temporary Accommodation       ,02-Aug-2021,NOVOTEL NOTTINGHAM                      ,"1,114.36",Aug-21
EREWASH BOROUGH COUNCIL,2905,Homelessness                  ,Temporary Accommodation       ,02-Aug-2021,NOVOTEL NOTTINGHAM                      ,"1,328.66",Aug-21
EREWASH BOROUGH COUNCIL,2517,Commissioned Projects         ,Miscellaneous Grants          ,22-Jul-2021,PARKSIDE HIGH CIC                       ,"1,050.00",Aug-21
EREWASH BOROUGH COUNCIL,3181,EBC Balance Sheet             ,EBC Fit for Work Scheme       ,24-Aug-2021,PARKWOOD LEISURE LTD                    ,540.00,Aug-21
EREWASH BOROUGH COUNCIL,2372,Transport Trading Account     ,Lubricants and Anti-freeze    ,21-Jul-2021,PARTSPLUS                               ,689.32,Aug-21
EREWASH BOROUGH COUNCIL,3161,Transport Trading Account     ,Lubricants and Anti-freeze    ,19-Jul-2021,PARTSPLUS                               ,382.21,Aug-21
EREWASH BOROUGH COUNCIL,2350,General Entertainment         ,Special Events                ,27-Jul-2021,PB FIRE LTD                             ,395.00,Aug-21
EREWASH BOROUGH COUNCIL,1172,Rutland Sports Park           ,Repairs and Maintenance       ,06-Jul-2021,PEEL ELECTRICAL LTD                     ,279.82,Aug-21
EREWASH BOROUGH COUNCIL,2482,,,26-Jul-2021,PENHAM EXCEL LIMITED                    ,956.54,Aug-21
EREWASH BOROUGH COUNCIL,2906,,,09-Aug-2021,PENHAM EXCEL LIMITED                    ,647.45,Aug-21
EREWASH BOROUGH COUNCIL,2333,Democratic Representation     ,Communications costs          ,23-Jul-2021,PICTORIAL LTD                           ,"2,900.00",Aug-21
EREWASH BOROUGH COUNCIL,2966,Development Control           ,Planning Fees                 ,06-Aug-2021,PORTALPLANQUEST LTD                     ,462.00,Aug-21
EREWASH BOROUGH COUNCIL,3090,Personnel                     ,Subscriptions                 ,01-Jul-2021,PPMA                                    ,300.00,Aug-21
EREWASH BOROUGH COUNCIL,2692,Insurances                    ,Uninsured Risks               ,27-Jul-2021,PROTECTOR INSURANCE                     ,"1,000.00",Aug-21
EREWASH BOROUGH COUNCIL,2802,Economic Development          ,Contracted Services           ,01-Jul-2021,PROXIMITY FUTURES T/A ELEPHANT WIFI     ,303.33,Aug-21
EREWASH BOROUGH COUNCIL,2801,Economic Development          ,Contracted Services           ,01-Aug-2021,PROXIMITY FUTURES T/A ELEPHANT WIFI     ,303.33,Aug-21
EREWASH BOROUGH COUNCIL,2823,Planning                      ,External Property Works       ,28-Jul-2021,PROXIMITY FUTURES T/A ELEPHANT WIFI     ,"3,960.00",Aug-21
EREWASH BOROUGH COUNCIL,2823,Planning                      ,External Property Works       ,28-Jul-2021,PROXIMITY FUTURES T/A ELEPHANT WIFI     ,"1,440.00",Aug-21
EREWASH BOROUGH COUNCIL,3179,EBC Balance Sheet             ,Payroll Coll Acc - AVCS       ,24-Aug-2021,PRUDENTIAL                              ,"2,755.66",Aug-21
EREWASH BOROUGH COUNCIL,2726,General Entertainment         ,Special Events                ,25-Jul-2021,B&B AUDIO                               ,"1,200.00",Aug-21
EREWASH BOROUGH COUNCIL,2570,Civic Accommodation Long Eaton,General Equipment             ,02-Aug-2021,BANNER GROUP LIMITED                    ,478.60,Aug-21
EREWASH BOROUGH COUNCIL,2347,Green Space                   ,General Equipment             ,28-Jun-2021,BRANDON HIRE STATION                    ,303.45,Aug-21
EREWASH BOROUGH COUNCIL,2370,ICT Support Services          ,Telephones                    ,22-Jul-2021,BRITISH TELECOMMUNICATIONS PLC          ,"1,765.23",Aug-21
EREWASH BOROUGH COUNCIL,2336,Street Scene                  ,Repairs and Maintenance       ,26-Jul-2021,BUCHER MUNICIPAL LTD                    ,"1,134.04",Aug-21
EREWASH BOROUGH COUNCIL,2708,Occupational Health & Welfare ,Occupational Health Service   ,01-Aug-2021,BUPA HEALTH CLINICS                     ,418.55,Aug-21
EREWASH BOROUGH COUNCIL,2538,Occupational Health & Welfare ,Occupational Health Service   ,01-Jul-2021,BUPA HEALTH CLINICS                     ,418.55,Aug-21
EREWASH BOROUGH COUNCIL,4342,Treasury and Bank Charges     ,Credit/Debit Card Charges     ,18-Aug-2021,CAPITA                                  ,"3,416.96",Aug-21
EREWASH BOROUGH COUNCIL,3150,General Entertainment         ,Special Events                ,22-Aug-2021,CARLTON BRASS BAND                      ,350.00,Aug-21
EREWASH BOROUGH COUNCIL,2157,ICT Support Services          ,General Equipment             ,19-Jul-2021,CCS MEDIA LIMITED                       ,257.36,Aug-21
EREWASH BOROUGH COUNCIL,2160,ICT Support Services          ,General Equipment             ,19-Jul-2021,CCS MEDIA LIMITED                       ,370.20,Aug-21
EREWASH BOROUGH COUNCIL,2159,Civic Accommodation Long Eaton,Planned Preventative Maintenan,19-Jul-2021,CCS MEDIA LIMITED                       ,455.03,Aug-21
EREWASH BOROUGH COUNCIL,2158,ICT Support Services          ,General Equipment             ,19-Jul-2021,CCS MEDIA LIMITED                       ,"1,209.36",Aug-21
EREWASH BOROUGH COUNCIL,2158,ICT Support Services          ,General Equipment             ,19-Jul-2021,CCS MEDIA LIMITED                       ,"1,814.04",Aug-21
EREWASH BOROUGH COUNCIL,2162,ICT Support Services          ,General Equipment             ,20-Jul-2021,CCS MEDIA LIMITED                       ,302.96,Aug-21
EREWASH BOROUGH COUNCIL,2951,ICT Support Services          ,Mobile Phones                 ,01-Aug-2021,CLASS AFFINITY PROJECTS LTD             ,"2,057.74",Aug-21
EREWASH BOROUGH COUNCIL,2295,Green Space                   ,General Equipment             ,22-Jul-2021,CROMWELL POLYTHENE LTD                  ,"1,373.40",Aug-21
EREWASH BOROUGH COUNCIL,2561,Green Space                   ,General Equipment             ,30-Jul-2021,CROMWELL POLYTHENE LTD                  ,"1,373.40",Aug-21
EREWASH BOROUGH COUNCIL,2568,Civic Transport               ,Hire Charges                  ,01-Aug-2021,CRUISE-IN-CONTROL LIMITED               ,469.40,Aug-21
EREWASH BOROUGH COUNCIL,2688,Household Waste Collection    ,Repairs and Maintenance       ,22-Jul-2021,EUROTRUCK MIDLANDS LTD                  ,456.00,Aug-21
EREWASH BOROUGH COUNCIL,2343,Sports Devt Coaching & Courses,General Equipment             ,23-Jul-2021,EXCEL COLOUR PRINT                      ,919.00,Aug-21
EREWASH BOROUGH COUNCIL,2092,Street Scene                  ,Agency Staff                  ,05-Jul-2021,EXTRA PERSONNEL LTD                     ,"2,703.70",Aug-21
EREWASH BOROUGH COUNCIL,2092,Green Space                   ,Agency Staff                  ,05-Jul-2021,EXTRA PERSONNEL LTD                     ,"2,703.69",Aug-21
EREWASH BOROUGH COUNCIL,2093,Public Conveniences           ,Agency Staff                  ,05-Jul-2021,EXTRA PERSONNEL LTD                     ,594.44,Aug-21
EREWASH BOROUGH COUNCIL,2093,Green Space                   ,Agency Staff                  ,05-Jul-2021,EXTRA PERSONNEL LTD                     ,"2,952.75",Aug-21
EREWASH BOROUGH COUNCIL,2093,Street Scene                  ,Agency Staff                  ,05-Jul-2021,EXTRA PERSONNEL LTD                     ,"2,952.74",Aug-21
EREWASH BOROUGH COUNCIL,2306,Street Scene                  ,Agency Staff                  ,12-Jul-2021,EXTRA PERSONNEL LTD                     ,280.56,Aug-21
EREWASH BOROUGH COUNCIL,2091,Street Scene                  ,Agency Staff                  ,16-Jul-2021,EXTRA PERSONNEL LTD                     ,350.70,Aug-21
EREWASH BOROUGH COUNCIL,2531,Street Scene                  ,Agency Staff                  ,19-Jul-2021,EXTRA PERSONNEL LTD                     ,350.70,Aug-21
EREWASH BOROUGH COUNCIL,2529,Public Conveniences           ,Agency Staff                  ,19-Jul-2021,EXTRA PERSONNEL LTD                     ,499.87,Aug-21
EREWASH BOROUGH COUNCIL,2529,Green Space                   ,Agency Staff                  ,19-Jul-2021,EXTRA PERSONNEL LTD                     ,"1,579.85",Aug-21
EREWASH BOROUGH COUNCIL,2529,Street Scene                  ,Agency Staff                  ,19-Jul-2021,EXTRA PERSONNEL LTD                     ,"1,579.85",Aug-21
EREWASH BOROUGH COUNCIL,2308,Public Conveniences           ,Agency Staff                  ,12-Jul-2021,EXTRA PERSONNEL LTD                     ,499.87,Aug-21
EREWASH BOROUGH COUNCIL,2308,Green Space                   ,Agency Staff                  ,12-Jul-2021,EXTRA PERSONNEL LTD                     ,"2,120.65",Aug-21
EREWASH BOROUGH COUNCIL,2308,Street Scene                  ,Agency Staff                  ,12-Jul-2021,EXTRA PERSONNEL LTD                     ,"2,120.65",Aug-21
EREWASH BOROUGH COUNCIL,2307,Green Space                   ,Agency Staff                  ,12-Jul-2021,EXTRA PERSONNEL LTD                     ,"2,455.44",Aug-21
EREWASH BOROUGH COUNCIL,2307,Street Scene                  ,Agency Staff                  ,12-Jul-2021,EXTRA PERSONNEL LTD                     ,"2,455.43",Aug-21
EREWASH BOROUGH COUNCIL,2527,Green Space                   ,Agency Staff                  ,19-Jul-2021,EXTRA PERSONNEL LTD                     ,"2,501.22",Aug-21
EREWASH BOROUGH COUNCIL,2527,Street Scene                  ,Agency Staff                  ,19-Jul-2021,EXTRA PERSONNEL LTD                     ,"2,501.21",Aug-21
EREWASH BOROUGH COUNCIL,2309,Household Waste Collection    ,Agency Staff                  ,12-Jul-2021,EXTRA PERSONNEL LTD                     ,"3,375.90",Aug-21
EREWASH BOROUGH COUNCIL,2309,Kerbside Recycling Collection ,Agency Staff                  ,12-Jul-2021,EXTRA PERSONNEL LTD                     ,"2,250.60",Aug-21
EREWASH BOROUGH COUNCIL,858,Street Scene                  ,Agency Staff                  ,24-May-2021,EXTRA PERSONNEL LTD                     ,489.19,Aug-21
EREWASH BOROUGH COUNCIL,3092,Street Scene                  ,Agency Staff                  ,26-Jul-2021,EXTRA PERSONNEL LTD                     ,449.02,Aug-21
EREWASH BOROUGH COUNCIL,2530,Household Waste Collection    ,Agency Staff                  ,19-Jul-2021,EXTRA PERSONNEL LTD                     ,767.04,Aug-21
EREWASH BOROUGH COUNCIL,2530,Kerbside Recycling Collection ,Agency Staff                  ,19-Jul-2021,EXTRA PERSONNEL LTD                     ,0.00,Aug-21
EREWASH BOROUGH COUNCIL,2961,Green Space                   ,Agency Staff                  ,02-Aug-2021,EXTRA PERSONNEL LTD                     ,"1,903.78",Aug-21
EREWASH BOROUGH COUNCIL,2961,Street Scene                  ,Agency Staff                  ,02-Aug-2021,EXTRA PERSONNEL LTD                     ,"1,903.77",Aug-21
EREWASH BOROUGH COUNCIL,2747,Public Conveniences           ,Agency Staff                  ,26-Jul-2021,EXTRA PERSONNEL LTD                     ,391.79,Aug-21
EREWASH BOROUGH COUNCIL,2747,Green Space                   ,Agency Staff                  ,26-Jul-2021,EXTRA PERSONNEL LTD                     ,"1,777.03",Aug-21
EREWASH BOROUGH COUNCIL,2747,Street Scene                  ,Agency Staff                  ,26-Jul-2021,EXTRA PERSONNEL LTD                     ,"1,777.02",Aug-21
EREWASH BOROUGH COUNCIL,2528,Household Waste Collection    ,Agency Staff                  ,19-Jul-2021,EXTRA PERSONNEL LTD                     ,"2,278.33",Aug-21
EREWASH BOROUGH COUNCIL,2528,Kerbside Recycling Collection ,Agency Staff                  ,19-Jul-2021,EXTRA PERSONNEL LTD                     ,"1,854.89",Aug-21
EREWASH BOROUGH COUNCIL,2963,Public Conveniences           ,Agency Staff                  ,02-Aug-2021,EXTRA PERSONNEL LTD                     ,499.87,Aug-21
EREWASH BOROUGH COUNCIL,2963,Green Space                   ,Agency Staff                  ,02-Aug-2021,EXTRA PERSONNEL LTD                     ,"1,932.37",Aug-21
EREWASH BOROUGH COUNCIL,2963,Street Scene                  ,Agency Staff                  ,02-Aug-2021,EXTRA PERSONNEL LTD                     ,"1,932.37",Aug-21
EREWASH BOROUGH COUNCIL,2746,Green Space                   ,Agency Staff                  ,26-Jul-2021,EXTRA PERSONNEL LTD                     ,"2,228.87",Aug-21
EREWASH BOROUGH COUNCIL,2746,Street Scene                  ,Agency Staff                  ,26-Jul-2021,EXTRA PERSONNEL LTD                     ,"2,228.87",Aug-21
EREWASH BOROUGH COUNCIL,3098,Green Space                   ,Agency Staff                  ,01-Mar-2021,EXTRA PERSONNEL LTD                     ,"2,281.47",Aug-21
EREWASH BOROUGH COUNCIL,3098,Street Scene                  ,Agency Staff                  ,01-Mar-2021,EXTRA PERSONNEL LTD                     ,"2,281.47",Aug-21
EREWASH BOROUGH COUNCIL,3076,Household Waste Collection    ,Agency Staff                  ,12-Apr-2021,EXTRA PERSONNEL LTD                     ,"2,982.79",Aug-21
EREWASH BOROUGH COUNCIL,3076,Kerbside Recycling Collection ,Agency Staff                  ,12-Apr-2021,EXTRA PERSONNEL LTD                     ,"1,988.53",Aug-21
EREWASH BOROUGH COUNCIL,3079,Household Waste Collection    ,Agency Staff                  ,10-May-2021,EXTRA PERSONNEL LTD                     ,"3,054.66",Aug-21
EREWASH BOROUGH COUNCIL,3079,Kerbside Recycling Collection ,Agency Staff                  ,10-May-2021,EXTRA PERSONNEL LTD                     ,"2,036.44",Aug-21
EREWASH BOROUGH COUNCIL,3078,Household Waste Collection    ,Agency Staff                  ,26-Apr-2021,EXTRA PERSONNEL LTD                     ,"3,138.41",Aug-21
EREWASH BOROUGH COUNCIL,3078,Kerbside Recycling Collection ,Agency Staff                  ,26-Apr-2021,EXTRA PERSONNEL LTD                     ,"2,092.28",Aug-21
EREWASH BOROUGH COUNCIL,3077,Household Waste Collection    ,Agency Staff                  ,19-Apr-2021,EXTRA PERSONNEL LTD                     ,"3,165.31",Aug-21
EREWASH BOROUGH COUNCIL,3077,Kerbside Recycling Collection ,Agency Staff                  ,19-Apr-2021,EXTRA PERSONNEL LTD                     ,"2,110.21",Aug-21
EREWASH BOROUGH COUNCIL,3082,Household Waste Collection    ,Agency Staff                  ,03-May-2021,EXTRA PERSONNEL LTD                     ,"3,651.25",Aug-21
EREWASH BOROUGH COUNCIL,3082,Kerbside Recycling Collection ,Agency Staff                  ,03-May-2021,EXTRA PERSONNEL LTD                     ,"2,434.17",Aug-21
EREWASH BOROUGH COUNCIL,3075,Household Waste Collection    ,Agency Staff                  ,05-Apr-2021,EXTRA PERSONNEL LTD                     ,"4,198.54",Aug-21
EREWASH BOROUGH COUNCIL,3075,Kerbside Recycling Collection ,Agency Staff                  ,05-Apr-2021,EXTRA PERSONNEL LTD                     ,"2,799.02",Aug-21
EREWASH BOROUGH COUNCIL,901,Household Waste Collection    ,Agency Staff                  ,21-Jun-2021,EXTRA PERSONNEL LTD                     ,"2,906.17",Aug-21
EREWASH BOROUGH COUNCIL,901,Kerbside Recycling Collection ,Agency Staff                  ,21-Jun-2021,EXTRA PERSONNEL LTD                     ,"1,937.44",Aug-21
EREWASH BOROUGH COUNCIL,901,Green Space                   ,Agency Staff                  ,21-Jun-2021,EXTRA PERSONNEL LTD                     ,"2,827.02",Aug-21
EREWASH BOROUGH COUNCIL,901,Street Scene                  ,Agency Staff                  ,21-Jun-2021,EXTRA PERSONNEL LTD                     ,"2,827.03",Aug-21
EREWASH BOROUGH COUNCIL,2335,Household Waste Collection    ,Repairs and Maintenance       ,25-Jul-2021,FARID HILLEND ENGINEERING LIMITED       ,257.50,Aug-21
EREWASH BOROUGH COUNCIL,2344,Transport Trading Account     ,Lubricants and Anti-freeze    ,23-Jul-2021,FUCHS LUBRICANTS (UK) PLC               ,"1,510.00",Aug-21
EREWASH BOROUGH COUNCIL,2744,Kerbside Recycling Collection ,Waste Disposal                ,31-Jul-2021,GAE SMITH HOLDINGS T/A CASEPAK          ,"24,546.56",Aug-21
EREWASH BOROUGH COUNCIL,3192,Green Space                   ,Materials/Consumables         ,25-Jul-2021,GO TRAFFIC MANAGEMENT                   ,795.00,Aug-21
EREWASH BOROUGH COUNCIL,2340,Green Space                   ,Repairs and Maintenance       ,26-Jul-2021,HENTON & CHATTELL LTD                   ,513.57,Aug-21
EREWASH BOROUGH COUNCIL,2513,Green Space                   ,Repairs and Maintenance       ,28-Jul-2021,HENTON & CHATTELL LTD                   ,513.57,Aug-21
EREWASH BOROUGH COUNCIL,3702,EBC Balance Sheet             ,Payroll Coll Acc - Income Tax ,16-Aug-2021,HMRC CUMBERNAULD                        ,435.40,Aug-21
EREWASH BOROUGH COUNCIL,3702,EBC Balance Sheet             ,Payroll Coll Acc National Ins ,16-Aug-2021,HMRC CUMBERNAULD                        ,534.08,Aug-21
EREWASH BOROUGH COUNCIL,3700,EBC Balance Sheet             ,Payroll Coll Acc - Income Tax ,16-Aug-2021,HMRC CUMBERNAULD                        ,"66,451.62",Aug-21
EREWASH BOROUGH COUNCIL,3700,EBC Balance Sheet             ,Payroll Coll Acc Student Loan ,16-Aug-2021,HMRC CUMBERNAULD                        ,"1,129.00",Aug-21
EREWASH BOROUGH COUNCIL,3700,EBC Balance Sheet             ,Payroll Coll Acc National Ins ,16-Aug-2021,HMRC CUMBERNAULD                        ,"101,126.08",Aug-21
EREWASH BOROUGH COUNCIL,3700,EBC Balance Sheet             ,Apprenticeship Levy           ,16-Aug-2021,HMRC CUMBERNAULD                        ,"2,026.00",Aug-21
EREWASH BOROUGH COUNCIL,3700,EBC Balance Sheet             ,Apprenticeship Levy           ,16-Aug-2021,HMRC CUMBERNAULD                        ,"1,250.00",Aug-21
EREWASH BOROUGH COUNCIL,1380,Arts Development              ,General Equipment             ,30-Apr-2021,A TOUCH OF HISTORY                      ,"1,200.00",Aug-21
EREWASH BOROUGH COUNCIL,2516,Sports Devt Coaching & Courses,Fees Costs and Expenses       ,27-Jul-2021,ACTIVE PARTNERS TRUST-ACTIVE DERBYSHIRE ,"15,015.60",Aug-21
EREWASH BOROUGH COUNCIL,2516,Sports Devt Coaching & Courses,Materials/Consumables         ,27-Jul-2021,ACTIVE PARTNERS TRUST-ACTIVE DERBYSHIRE ,101.40,Aug-21
EREWASH BOROUGH COUNCIL,4340,Treasury and Bank Charges     ,Allpay/Post Office Charges    ,31-Aug-2021,ALLPAY LIMITED                          ,967.28,Aug-21
EREWASH BOROUGH COUNCIL,2122,Civic Accommodation Ilkeston  ,Reactive Maintenance          ,19-Jul-2021,ALPHA DRAIN SERVICES                    ,270.00,Aug-21
EREWASH BOROUGH COUNCIL,2163,Civic Accommodation Long Eaton,Planned Preventative Maintenan,21-Jul-2021,ALPHA PARTNER (MIDLANDS)  LIMITED       ,"1,800.00",Aug-21
EREWASH BOROUGH COUNCIL,2603,Erewash Museum                ,Special Events                ,19-Aug-2021,ANIMAL MAGIC PARTIES                    ,325.00,Aug-21
EREWASH BOROUGH COUNCIL,706,ICT Support Services          ,Office Paper                  ,25-Jun-2021,ANTALIS DOCUMENT SUPPLIES               ,273.00,Aug-21
EREWASH BOROUGH COUNCIL,2696,Infec Disease & Food Poisoning,Work in Default               ,08-Jul-2021,AW LYMN LTD                             ,"1,490.00",Aug-21
EREWASH BOROUGH COUNCIL,2279,Street Scene                  ,Contracted Services           ,01-Jun-2021,LANGUARD LTD                            ,"3,572.79",Aug-21
EREWASH BOROUGH COUNCIL,2579,Green Space                   ,Contracted Services           ,01-Aug-2021,LANGUARD LTD                            ,"3,572.79",Aug-21
EREWASH BOROUGH COUNCIL,4334,Treasury and Bank Charges     ,BACS Charges                  ,10-Aug-2021,LLOYDS BANK PLC                         ,556.38,Aug-21
EREWASH BOROUGH COUNCIL,3163,"Police, Crime Commissioner Com",Project Grants                ,20-Jul-2021,Long Eaton Rugby Club                   ,"2,040.00",Aug-21
EREWASH BOROUGH COUNCIL,1563,,,14-Jul-2021,MARSTON HOLDINGS LIMITED                ,342.65,Aug-21
EREWASH BOROUGH COUNCIL,2997,General Entertainment         ,Special Events                ,29-Jul-2021,MATLOCK BAND                            ,280.00,Aug-21
EREWASH BOROUGH COUNCIL,2270,Sports Devt Coaching & Courses,General Equipment             ,19-Jul-2021,MAVERICK CUSTOMWEAR LTD.                ,305.10,Aug-21
EREWASH BOROUGH COUNCIL,1388,Public Conveniences           ,Repairs and Maintenance       ,08-Jul-2021,MDB PLUMBING (NOTTM) LTD                ,658.71,Aug-21
EREWASH BOROUGH COUNCIL,2099,Civic Accommodation Ilkeston  ,PPM Mechanical and Equipment  ,16-Jul-2021,MDB PLUMBING (NOTTM) LTD                ,530.42,Aug-21
EREWASH BOROUGH COUNCIL,2483,St Laurence Pre School        ,PPM Mechanical and Equipment  ,28-Jul-2021,MDB PLUMBING (NOTTM) LTD                ,478.82,Aug-21
EREWASH BOROUGH COUNCIL,2553,Civic Accommodation Ilkeston  ,Repairs and Maintenance       ,02-Aug-2021,MDB PLUMBING (NOTTM) LTD                ,"1,362.89",Aug-21
EREWASH BOROUGH COUNCIL,2824,Occupational Health & Welfare ,Occupational Health Service   ,10-Jun-2021,MEDIGOLD HEALTH CONSULTANCY LIMITED     ,287.50,Aug-21
EREWASH BOROUGH COUNCIL,2719,Occupational Health & Welfare ,Occupational Health Service   ,06-Jul-2021,MEDIGOLD HEALTH CONSULTANCY LIMITED     ,685.00,Aug-21
